Cogmind - Beta 17.1 @@@ ROGUE MODE // 2026.09.22 @ 18:43:50 Player: Maynard Result: Destroyed by A-27 Freighter with PD Laser Performance ------------- Evolutions (3) 1500 Regions Visited (4) 800 Robots Destroyed (62) 310 Value Destroyed (2013) 2013 Prototype IDs (2) 40 Alien Tech Used (0) 0 Bonus (0) 0 TOTAL SCORE: 4663 Bonus ------- None Cogmind --------- Core Integrity 0/700 Matter 186/300 Energy 100/100 System Corruption 5% Temperature Cool (6) Movement Core (750) Ox14 Location -7/Factory Parts ------- > --- POWER (2) -------- (None) > --- PROPULSION (4) --- (None) > --- UTILITY (5) ------ High-capacity Storage Unit Advanced Targeting Computer Transmission Jammer > --- WEAPON (2) ------- Heavy Mace > --- INVENTORY (20) --- Improved Titanium Leg Armored Huge Wheel Thermal Generator Cargo Storage Unit Advanced Targeting Computer Relay Coupler [NC] (22) Relay Coupler [Swarmer] (22) Relay Coupler [Hunter] (13) EM Pulse Cannon Heavy Assault Rifle Flak Gun Flak Gun Gauss Cannon Rocket Launcher Remote Datajack Peak State ------------ > --- POWER ------------ Micro Nuclear Core Micro Nuclear Core > --- PROPULSION ------- Armored Huge Wheel Armored Huge Wheel > --- UTILITY ---------- High-capacity Storage Unit Compact Battery Large Matter Pod Advanced Targeting Computer Transmission Jammer > --- WEAPON ----------- Missile Launcher Heavy Mace > --- INVENTORY -------- Improved Titanium Leg Armored Huge Wheel Thermal Generator Small Storage Unit Advanced Targeting Computer Relay Coupler [NC] Relay Coupler [Swarmer] Relay Coupler [Hunter] Beam Rifle EM Pulse Cannon Heavy Assault Rifle Flak Gun Flak Gun Flak Gun Gauss Cannon Rocket Launcher Heavy Rocket Launcher Remote Datajack [Rating: 48] Favorites ----------- Power Light Nuclear Core Engine Ion Engine Power Core Light Nuclear Core Propulsion Aluminum Leg Leg Aluminum Leg Wheel Wheel Utility Advanced Targeting Computer Device Sensor Array Storage Large Matter Pod Processor Advanced Targeting Computer Protection Light Armor Plating Weapon EM Pulse Cannon Energy Gun Heavy Laser Energy Cannon EM Pulse Cannon Ballistic Gun Heavy Assault Rifle Ballistic Cannon Light Cannon Launcher Rocket Launcher Impact Weapon Heavy Mace Build | -11 -10 -9 -8 -7 ------- Run | Yrd Mat Mat Mat Fac Slots Evolved 6 | . . 2 2 2 Power 1 | . . . . 1 Propulsion 2 | . . 1 1 . Utility 3 | . . 1 1 1 Weapon . | . . . . . Parts Attached 59 | 6 6 8 11 28 Power 11 | 1 1 . 1 8 Engine 3 | 1 1 . . 1 Core 8 | . . . 1 7 Reactor . | . . . . . Propulsion 13 | 2 . 3 2 6 Treads . | . . . . . Leg 6 | . . 3 1 2 Wheel 7 | 2 . . 1 4 Hover . | . . . . . Flight . | . . . . . Utility 11 | 1 1 2 2 5 Device 5 | . . 2 . 3 Storage 4 | 1 1 . 1 1 Processor 1 | . . . 1 . Hackware . | . . . . . Protection 1 | . . . . 1 Artifact . | . . . . . Weapon 24 | 2 4 3 6 9 Energy Gun 4 | . 2 . 1 1 Energy Cannon 3 | . . 1 1 1 Ballistic Gun 8 | 2 1 1 2 2 Ballistic Cannon 3 | . 1 . 1 1 Launcher 5 | . . 1 1 3 Special Weapon . | . . . . . Impact Weapon 1 | . . . . 1 Slashing Weapon . | . . . . . Piercing Weapon . | . . . . . Special Melee Weapon . | . . . . . Unidentified Prototypes 2 | . . . 2 . Parts Lost 35 | . 2 2 5 26 Power 9 | . 1 . . 8 Propulsion 9 | . . . 3 6 Utility 6 | . . . . 6 Weapon 11 | . 1 2 2 6 Highest Loss Streak 6 | . 1 1 2 6 To Critical Strikes . | . . . . . Average Backups 11 | 1 6 7 6 14 Power 1 | . 1 1 1 2 Propulsion . | . 2 2 . . Utility 3 | . . . 2 5 Weapon 4 | 1 2 3 2 6 Tool/Special . | . . . . . Unused Backups 17 | . 4 3 1 9 Power . | . . . . . Propulsion 2 | . 1 . . 1 Utility 6 | . . 1 . 5 Weapon 7 | . 3 2 . 2 Tool/Special 2 | . . . 1 1 Average Slot Usage (%) 81 | . 95 98 83 74 Engine 4 | . 13 11 6 . Core 6 | . . . 2 11 Leg 8 | . . 31 20 3 Wheel 8 | . 28 1 . 7 Device 11 | . . 9 9 15 Storage 16 | . 25 22 18 13 Processor 5 | . . . 8 7 Energy Gun 2 | . 6 1 . 1 Energy Cannon 2 | . . 4 5 2 Ballistic Gun 6 | . 16 11 3 4 Launcher 3 | . . 5 7 2 Impact Weapon 1 | . . . . 2 Peak Build Rating 48 | 6 10 15 17 48 Average Rating 22 | 4 8 13 15 30 On Entrance 8 | . 6 9 12 15 Avg Prop Armor Cover (%) 7 | . . . 3 8 Naked Turns . | . . . . . Heaviest Build 67 | 12 19 29 59 67 Greatest Support 56 | 26 26 30 40 56 Greatest Overweight (x) 21 | . . . 6 21 Average Overweight (x) 1 | . . . 1 2 Largest Inventory Capacity 20 | 8 8 8 20 20 Average Capacity 14 | 7 8 8 9 19 Most Carried 20 | 4 8 8 8 20 Average Carried 11 | 1 6 7 6 14 Final Capacity 20 | 8 8 8 8 20 Final Carried 17 | 3 7 8 7 17 Class Distribution -------------------- 90% | Mutant 9% | Scavenger-Mutant Dominant Class ---------------- Mutant | -10/Materials Mutant | -9/Materials Mutant | -8/Materials Mutant | -7/Factory Resources | -11 -10 -9 -8 -7 ----------- Run | Yrd Mat Mat Mat Fac Matter Collected 1739 | 272 182 251 338 696 Remotely . | . . . . . Salvage Created 1766 | 96 199 442 338 691 Parts 103 | 2 17 29 24 31 Haulers Intercepted 1 | . . . . 1 Recyclers Shooed . | . . . . . Parts Field Recycled . | . . . . . Retrieved Matter . | . . . . . Parts Self-Destructed . | . . . . . Prevented . | . . . . . Parts Restored . | . . . . . Kills | -11 -10 -9 -8 -7 ------- Run | Yrd Mat Mat Mat Fac Combat Hostiles Destroyed 42 | . 6 8 11 17 Melee 4 | . . . . 4 Guns 12 | . 5 1 1 5 Cannons 4 | . 1 2 . 1 AOE 21 | . . 5 9 7 Classes Destroyed 14 | 1 3 3 1 6 Worker 6 | . . . 1 5 Builder 4 | . . 2 1 1 Hauler 1 | . . . . 1 Recycler 2 | 1 . . 1 . Mechanic 2 | . . . . 2 Operator 1 | . . . . 1 Watcher 4 | . 1 1 1 1 Swarmer 7 | . 3 . 4 . Grunt 14 | . 3 6 3 2 Duelist 1 | . . 1 . . Protector 2 | . . . . 2 Sentry 7 | . . 1 4 2 Hunter 5 | . . . . 5 Programmer 6 | . . . . 6 Best Kill Streak 6 | 1 3 4 5 6 Combat Bots Only 4 | . 3 4 4 4 Max Kills in Single Turn 5 | 1 1 1 5 4 Gunslinging . | . . . . . Exploded 4 | . . 1 4 2 Melee 1 | . . . . 1 Uniques/NPCs Destroyed . | . . . . . Combat | -11 -10 -9 -8 -7 -------- Run | Yrd Mat Mat Mat Fac Hostile Shots Fired 520 | . 49 40 48 383 Missed 161 | . 17 14 16 114 Hits 359 | . 32 26 32 269 Melee 1 | . . 1 . . Projectile 358 | . 32 25 32 269 Critical Strikes 5 | . . . 1 4 Damage Taken 4478 | . 347 427 523 3181 Core 870 | . 51 83 22 714 Absorbed by Shields 176 | . . . . 176 Core Remaining (%) 88 | 100 79 79 96 . Volleys Fired 221 | 2 44 26 48 101 Largest 2 | 2 2 1 1 2 Hottest 69 | 40 50 63 63 69 Shots Fired 236 | 4 51 26 48 107 Gun 138 | 4 48 3 14 69 Cannon 34 | . 3 12 8 11 Launcher 64 | . . 11 26 27 Special . | . . . . . Kinetic 99 | 4 34 3 14 44 Thermal 28 | . . . . 28 Explosive 48 | . . . 21 27 Electromagnetic 61 | . 17 23 13 8 Robot Hit Streak 27 | 3 7 7 6 27 Robot Miss Streak 4 | . 3 1 3 4 Penetration Max . | . . . . . Secondary Targets . | . . . . . Shots Hit Robots 152 | 3 35 21 16 77 Core Hits 135 | 2 11 15 29 78 Critical Kills 1 | . . . . 1 Critical Parts Destroyed 2 | . 1 . . 1 Critical Strikes 3 | . 1 . . 2 Destroy 2 | . 1 . . 1 Smash 1 | . . . . 1 Melee Attacks 9 | . . . . 9 Impact 9 | . . . . 9 Slashing . | . . . . . Piercing . | . . . . . Sneak Attacks 2 | . . . . 2 Combat Hostiles . | . . . . . Follow-up Attacks . | . . . . . Damage Inflicted 6602 | 39 522 723 1112 4206 Guns 1966 | 39 487 43 140 1257 Cannons 581 | . 35 250 150 146 Explosions 3523 | . . 418 822 2283 Melee 468 | . . . . 468 Ramming 64 | . . 12 . 52 Kinetic 1397 | 39 341 43 140 834 Thermal 567 | . . 106 . 461 Explosive 3008 | . . . 725 2283 Electromagnetic 1098 | . 181 562 247 108 Impact 468 | . . . . 468 Slashing . | . . . . . Piercing . | . . . . . Highest Corruption 5 | . . . . 5 Average Corruption 3 | . . . . 3 Corruption Purged . | . . . . . Corruption Blocked . | . . . . . Effects 26 | . . . . 26 Message Errors 5 | . . . . 5 Matter Fused 9 | . . . . 9 Heat Flow Errors 5 | . . . . 5 Data Loss (minor) 3 | . . . . 3 Data Loss (major) 2 | . . . . 2 Alerts 1 | . . . . 1 Weapon Failures 1 | . . . . 1 Overload Shots . | . . . . . Overflow Damage 259 | . . . . 259 Projectiles . | . . . . . Explosions 84 | . . . . 84 Melee 175 | . . . . 175 Knockbacks 3 | . . . . 3 Impact 3 | . . . . 3 Kinetic . | . . . . . Secondary . | . . . . . Self-Inflicted Damage 234 | . . 58 41 135 Shots 10 | . . 2 2 6 Rammed 2 | . . . . 2 Targets Rammed 8 | . . 1 . 7 Kicked 6 | . . 1 . 5 Crushed . | . . . . . Highest Temperature 276 | . 42 195 49 276 Average Temperature 55 | . 15 71 18 64 Received Heat Transfer 940 | . 132 159 225 424 Siege Activations . | . . . . . Martial Activations . | . . . . . Shielding Activations . | . . . . . Robots Disrupted 1 | . . . . 1 Combat Hostiles 1 | . . . . 1 Robots Corrupted 2 | . . . 1 1 Combat Hostiles 1 | . . . 1 . Parts Fried 10 | . . 3 3 4 Impact Corruptions 5 | . . . . 5 Robots Melted . | . . . . . Combat Hostiles . | . . . . . Parts Melted 3 | . . . . 3 Heat Transferred 1014 | . . 200 . 814 Parts Sabotaged . | . . . . . Parts Stolen . | . . . . . Parts Stripped . | . . . . . Power Chain Reactions 4 | . . 4 . . Alert | -11 -10 -9 -8 -7 ------- Run | Yrd Mat Mat Mat Fac Maximum Alert Level 1 | . . . 1 . Low Security (%) 91 | 100 100 100 52 100 Level 1 8 | . . . 47 . Level 2 . | . . . . . Level 3 . | . . . . . Level 4 . | . . . . . Level 5 . | . . . . . High Security . | . . . . . Max Security . | . . . . . Peak Influence 311 | 5 65 194 311 192 Initial 101 | . . 14 65 101 Average 65 | 1 27 107 182 29 Influence Increases 1709 | 5 218 284 495 707 Destroy 0b10 Robot/C 800 | . 120 160 220 300 Destroy 0b10 Robot/NC 110 | 5 5 15 20 65 Destroy Leader 200 | . 32 32 62 74 Successful Hack 14 | . . . . 14 Disable Machine 150 | . . 30 60 60 Destroy Structure 255 | . 1 17 103 134 Partial Spotted 15 | . 15 . . . Lose Combat Pursuer 165 | . 45 30 30 60 Influence Decreases 1537 | 5 183 165 425 759 Entered New Map 233 | . . 21 89 123 Time Decay 1094 | 5 163 134 286 506 Lost Part 210 | . 20 10 50 130 Squads Dispatched 8 | . 2 . 1 5 Investigation . | . . . . . Extermination 3 | . . . . 3 Reinforcement 5 | . 2 . 1 2 Assault . | . . . . . Garrison . | . . . . . Intercept . | . . . . . Searches Triggered . | . . . . . Construction Impeded 1 | . . . . 1 Haulers Reinforced 1 | . . . . 1 Active Scanning Responses . | . . . . . Cargo Convoy Interrupts 1 | . . . . 1 Stealth | -11 -10 -9 -8 -7 --------- Run | Yrd Mat Mat Mat Fac Distress Signals 5 | . 1 3 1 . Communications Jammed 22 | . . . . 22 Distress Signals 18 | . . . . 18 Times Spotted 80 | . 15 14 17 34 Peak Tracking Total 9 | . 5 6 4 9 Tactical Retreats 10 | . 3 2 2 3 Traps | -11 -10 -9 -8 -7 ------- Run | Yrd Mat Mat Mat Fac Traps Triggered 1 | . . . . 1 Indirectly . | . . . . . Trap Hack Attempts . | . . . . . Triggered . | . . . . . Disarmed . | . . . . . Reprogrammed . | . . . . . Reused . | . . . . . Traps Extracted . | . . . . . Installed . | . . . . . Triggered . | . . . . . Machines | -11 -10 -9 -8 -7 ---------- Run | Yrd Mat Mat Mat Fac Machines Disabled 10 | . . 2 4 4 Max in Single Turn 2 | . . 2 2 1 Machines Repaired . | . . . . . Machines Dismantled . | . . . . . Machines Sabotaged . | . . . . . Overloaded Fab Kills . | . . . . . Hacking | -11 -10 -9 -8 -7 --------- Run | Yrd Mat Mat Mat Fac Machines Accessed 2 | . . . . 2 Terminals 2 | . . . . 2 Fabricators . | . . . . . Repair Stations . | . . . . . Recycling Units . | . . . . . Scanalyzers . | . . . . . Garrison Access . | . . . . . Total Hacks 4 | . . . . 4 Successful 1 | . . . . 1 Failed 3 | . . . . 3 Catastrophic . | . . . . . Database Lockouts . | . . . . . Manual . | . . . . . Terminals 4 | . . . . 4 Fabricators . | . . . . . Repair Stations . | . . . . . Recycling Units . | . . . . . Scanalyzers . | . . . . . Garrison Access . | . . . . . Terminal Hacks 1 | . . . . 1 Zone Layout 1 | . . . . 1 Fabricator Hacks . | . . . . . Repair Station Hacks . | . . . . . Recycling Unit Hacks . | . . . . . Scanalyzer . | . . . . . Garrison Access Hacks . | . . . . . Unauthorized Hacks . | . . . . . Terminals . | . . . . . Fabricators . | . . . . . Repair Stations . | . . . . . Recycling Units . | . . . . . Scanalyzers . | . . . . . Garrison Access . | . . . . . Data Cores Recovered . | . . . . . Used . | . . . . . Hacking Detections 1 | . . . . 1 Full Trace Events . | . . . . . Feedback Events . | . . . . . Feedback Blocked . | . . . . . Robot Schematics Acquired . | . . . . . Robots Built . | . . . . . Authchips . | . . . . . Time . | . . . . . Total Robot Build Rating . | . . . . . Part Schematics Acquired . | . . . . . Parts Built . | . . . . . Authchips . | . . . . . Time . | . . . . . Total Part Build Rating . | . . . . . Part Studies Acquired . | . . . . . Parts Repaired . | . . . . . Time . | . . . . . Parts Recycled . | . . . . . Recycled Matter . | . . . . . Retrieved Matter . | . . . . . Retrieved Components . | . . . . . Parts Scanalyzed . | . . . . . Part Schematics Acquired . | . . . . . Parts Damaged . | . . . . . Bothacking | -11 -10 -9 -8 -7 ------------ Run | Yrd Mat Mat Mat Fac Used RIF Installer . | . . . . . Robots Hacked . | . . . . . Non-combat . | . . . . . Combat . | . . . . . Robot Hacks Applied . | . . . . . Relay Couplers Released 4 | . . . . 4 Programmers 4 | . . . . 4 Fabnet Peak Effective % . | . . . . . Robots Rewired . | . . . . . Allies Hacked . | . . . . . Hacks Repelled . | . . . . . Allies | -11 -10 -9 -8 -7 -------- Run | Yrd Mat Mat Mat Fac Total Allies . | . . . . . Largest Group . | . . . . . Highest-Rated Group . | . . . . . Highest-Rated Ally . | . . . . . Total Orders . | . . . . . Ally Attacks . | . . . . . Total Damage . | . . . . . Kills . | . . . . . Allies Corrupted . | . . . . . Allies Melted . | . . . . . Intel | -11 -10 -9 -8 -7 ------- Run | Yrd Mat Mat Mat Fac Active Infowar (turns) 2593 | . . 104 638 1851 Sensors 1783 | . . 104 638 1041 Jamming 1733 | . . . . 1733 Robot Analysis Total . | . . . . . Derelict Logs Recovered . | . . . . . Drone Launches . | . . . . . Drone Recoveries . | . . . . . Exploration | -11 -10 -9 -8 -7 ------------- Run | Yrd Mat Mat Mat Fac Turns Passed 3335 | 56 461 304 638 1876 Spaces Moved 1681 | 41 312 178 257 893 Core 23 | 1 . . 14 8 Treads . | . . . . . Legs 609 | . . 178 243 188 Wheels 1049 | 40 312 . . 697 Hover . | . . . . . Flight . | . . . . . Fastest Speed 50 | 50 90 120 120 100 Average Speed 149 | 86 90 120 195 165 Slowest Speed 1100 | 90 90 120 350 1100 Overloaded Moves . | . . . . . Propulsion Burnouts . | . . . . . Robots Hopped . | . . . . . Potential Cave-ins 1 | . . 1 . . Cave-ins Triggered . | . . . . . Exploration Rate (%) 23 | 4 36 27 28 21 Regions Visited 4 Branch Regions . Pre-discovered Areas . | . . . . . Known Exits Taken . | . . . . . Unknown Exits Taken 4 | 1 1 1 1 . Scrap Searched . | . . . . . Spaces Dug . | . . . . . Terrain Destroyed 335 | . . 17 126 192 Melee . | . . . . . Projectile . | . . . . . AOE 335 | . . 17 126 192 Terrain Rammed . | . . . . . Walls Destroyed . | . . . . . Machines Disabled . | . . . . . Actions | -11 -10 -9 -8 -7 --------- Run | Yrd Mat Mat Mat Fac Total 2251 | 57 443 243 343 1165 Wait 153 | . 61 12 12 68 Move 1677 | 40 311 177 256 893 Hop . | . . . . . Pick Up 76 | 9 14 12 6 35 Fast Attach . | . . . . . Attach 44 | 6 4 4 6 24 Detach 1 | . . . . 1 Swap 36 | . 2 4 11 19 Drop 23 | . 7 7 4 5 Fire 221 | 2 44 26 48 101 Melee 9 | . . . . 9 Ram 2 | . . . . 2 Kick 6 | . . 1 . 5 Crush . | . . . . . Escape Stasis . | . . . . . Rewire 3 | . . . . 3 Trap . | . . . . . Miscellaneous . | . . . . . Route ------- -11/Scrapyard -10/Materials -9/Materials -8/Materials -7/Factory History --------- Turn | Location | Event 17 | -11/Scrapyard | Discovered new exit (range 16) 57 | -11/Scrapyard | Entered Materials 310 | -10/Materials | Build established: Mutant 489 | -10/Materials | Discovered new exit (range 5) 518 | -10/Materials | Entered another Materials area 518 | -9/Materials | Evolved 2 slots: Propulsion x1, Utility x1 792 | -9/Materials | Discovered new exit (range 8) 822 | -9/Materials | Entered another Materials area 822 | -8/Materials | Evolved 2 slots: Propulsion x1, Utility x1 1397 | -8/Materials | Discovered new exit (range 15) 1460 | -8/Materials | Entered Factory 1460 | -7/Factory | Evolved 2 slots: Power x1, Utility x1 2593 | -7/Factory | Lost 5 parts (1p1n2u1w) 2667 | -7/Factory | Lost 3 parts (1n1u1w) 2702 | -7/Factory | Core integrity fell below 50% 3311 | -7/Factory | Cargo convoy interrupted 3324 | -7/Factory | Core integrity fell below 20% 3336 | -7/Factory | Destroyed by A-27 Freighter with PD Laser Last Messages --------------- 03317_ The unstable cave ceiling collapses. 03317_ I-36 Angel distress signal jammed. 03318_ A-27 Freighter distress signal jammed. 03319_ Slug penetrates Wall. 03320_ The unstable cave ceiling collapses. 03324_ Slug penetrates Wall. 03324_ Penetrated by Slug. 03324_ Arm. Huge Wheel destroyed. 03325_ I-36 Angel destroyed. 03325_ Destroyed Adv. Heat Sink. 03325_ H-55 Commando destroyed. 03325_ A-02 Transporter destroyed. 03325_ M-28 Smith destroyed. 03326_ Penetrated by Slug. 03328_ Com. Battery destroyed. 03330_ Slug penetrates A-27 Freighter. 03330_ Hvy. Rocket Launcher destroyed. 03330_ Arm. Huge Wheel destroyed. 03332_ Slug penetrates Wall. 03335_ System corrupted: Matter fused (-7). Map ----- +----------------------------------------------------+ | ???????????? #???????????????################# | | ???????????? #???????????????# / [# | | ???????????? #???????????????#"" # ""G"" | | ???????????# #???????????????#" """" # " " | | ???????????+ +???????????????#"F """" # | | ???????????# #???????????????#"" """" # [!! | | ???????????# #???????????????# """" # !! | | ???????????# #???????????????# + ! | | ???????????# #???????????????# [# | | ############ #?????????????### ####+### | | #????????###### ##/ +### | | |%! #????????# ! = | | % #????????# | | ########## """""" | | %!%! # # """"" """"" | | ########## * # """""" # """"" | | #?????# ] ! # """""" """"" | | #?????# ]%= # # ! """"" ## | | #?????# % ] ########## # | | ####### % % #???###?# " # | | ! # / #?? ## " # | | # #?"""" !?# " # | | # """" # ""F" ## ## | | !# """" # ;#### "" ## | | # """" # xA/ ### ## | | ### """" + ##@# """ ## #? | | ??# """" # # #??""" ??### ####? | | ??# """" # ##### #T #????" ??## #???? | | ??# + #???#### #?????????# # ####### | | ??############+########?# #######???# ## | | ??????# ! #?# #???### ## | | ??????# ! #?# #????# # " | | ??????# #?# ###### " # " | | ??????# #?# "T + " | | ??????# """""" """""" #?####### ### # | | ??????# """""" """""" #???????# #?# # | | ??????# """""" """""" #???????# #?####### | | ??????????"""" """""" #???????######???????# | | ??????????? #????????????????????####### | | ???????????? ??????????????????????????????????? | | ????????????###??????????????????????????????????? | | | | | | | | | | | | | | | | | | | +----------------------------------------------------+ Best States ------------- Heat Dissipation 34 Energy Generation 25 Energy Capacity 410 Matter Stores 450 Matter Capacity 450 Sight Range 16 Robot Scan Range 14 Terrain Scan Density 10 Jamming Range 12 Armor Coverage 150 Evasion (%) 55 Targeting Accuracy 8 Particle Charging 15 Item Schematics ----------------- None Robot Schematics ------------------ None Fabricated ------------ Nothing Repaired ---------- Nothing Studied --------- None Alien Tech Used ----------------- None Achievements -------------- Botjacking Fist Fight More Dakka Please No Signal Total Silence Challenges ------------ None Game ------ Seed BehemothHardcellMegashotty Manual? 0 Play Time 00:59:17 Cumulative 24.2 hours Start 2026.09.22 @ 17:43:57 End 2026.09.22 @ 18:43:50 Sessions 1 Manual Loads 0 Difficulty Rogue Special Mode None Game No. 28 Rogue 28 Adventurer 0 Explorer 0 Win Type - Total 0 Types 0/0/0/0/0/0/0/0/0/0 Lore% 8 Gallery% 19 Achievement% 17 Wizard Run 0 Options --------- Layout 1 ASCII 0 Keyboard 0 Movement Mouse Keybinds 0 Fullscreen 1 Font 24/Smallcaps Map View 50x35 Zoom Use 0% Tactical HUD 1 Map Filters NONE Filters NONE Steam 1 RUN: e1af5bb1-cb5b-49b5-97fe-f339d21cf6f0